Cogmind - Beta 17.1 @@@ ROGUE MODE // 2026.09.05 @ 23:27:25 Player: Caluan Result: Destroyed by S-27 Virus with Autogun Performance ------------- Evolutions (6) 3000 Regions Visited (19) 3800 Robots Destroyed (197) 985 Value Destroyed (8482) 8482 Prototype IDs (20) 400 Alien Tech Used (0) 0 Bonus (1753) 1753 TOTAL SCORE: 18420 Bonus ------- High Alert Combat Kills 549 Follower Combat Kills 434 Met Data Miner 300 MAIN.C Attacked Proxy Base 500 Friendly Fire -30 Cogmind --------- Core Integrity 0/1150 Matter 300/300 Energy 98/100 System Corruption 0% Temperature Cool (0) Movement Core (50) Location -4/Upper Caves Parts ------- > --- POWER (2) -------- (None) > --- PROPULSION (4) --- (None) > --- UTILITY (8) ------ (None) > --- WEAPON (5) ------- (None) > --- INVENTORY (5) ---- Light Antimatter Reactor Compact Battery (200) Matter Compressor (250) Improved Cloaking Device Hacking Drone Bay (1/1) Peak State ------------ > --- POWER ------------ Neutrino Core Antimatter Reactor > --- PROPULSION ------- Carbon-fiber Leg Armored Leg Armored Leg Advanced VSS Leg > --- UTILITY ---------- Improved Coolant Injector Improved Coolant Injector Huge Storage Unit Advanced Recoil Stabilizer Hacking Suite Hacking Drone Bay > --- WEAPON ----------- Magnetic Acceleration Cannon Magnetic Acceleration Cannon Magnetic Acceleration Cannon Heavy Gauss Cannon Katana > --- INVENTORY -------- Light Nuclear Core Cooled Deuterium Engine Angular Momentum Engine Angular Momentum Engine Improved Treads Improved Treads Armored Treads Carbon-fiber Leg Armored Leg Armored Leg Armored Leg Armored Leg Armored Leg Matter Compressor Matter Compressor [Rating: 95] Favorites ----------- Power Heavy Deuterium Engine Engine Heavy Deuterium Engine Power Core Enhanced Nuclear Core Reactor Antimatter Reactor Propulsion Light Treads Treads Light Treads Leg Carbon-fiber Leg Wheel Compact Wheel Utility Hacking Suite Device Improved Heat Sink Storage Huge Storage Unit Processor Improved Signal Interpreter Hackware Hacking Suite Protection Light Armor Plating Weapon Flak Gun Energy Gun Improved EM Shotgun Ballistic Gun Flak Gun Ballistic Cannon Assault Cannon Launcher Improved Grenade Launcher Impact Weapon Mace Slashing Weapon Katana Build | -11 -10 -10 -10 -9 -8 -7 -7 -7 -7 -6 -6 -6 -6 -6 -5 -5 -4 -4 -4 ------- Run | Yrd Mat Min Exi Min Mat Fac Low Low Zio Pro Fac Low Low Dat Pro Fac Fac Upp Upp Slots Evolved 12 | . . . . . 4 2 . . . . 2 . . . . 2 2 . . Power 1 | . . . . . . 1 . . . . . . . . . . . . . Propulsion 2 | . . . . . 1 . . . . . . . . . . 1 . . . Utility 6 | . . . . . 2 1 . . . . 1 . . . . . 2 . . Weapon 3 | . . . . . 1 . . . . . 1 . . . . 1 . . . Parts Attached 157 | 7 6 1 . 1 19 8 5 . . 20 5 10 7 . 6 52 7 2 1 Power 22 | 2 . . . . 4 2 . . . 3 . 1 1 . 1 5 2 1 . Engine 13 | 2 . . . . 2 1 . . . 3 . . 1 . . 1 2 1 . Core 7 | . . . . . 2 1 . . . . . 1 . . 1 2 . . . Reactor 2 | . . . . . . . . . . . . . . . . 2 . . . Propulsion 49 | 2 . 1 . . 5 1 3 . . 6 . 3 2 . 2 20 3 1 . Treads 36 | 2 . 1 . . 5 1 3 . . 5 . 3 2 . 2 9 3 . . Leg 11 | . . . . . . . . . . . . . . . . 11 . . . Wheel 2 | . . . . . . . . . . 1 . . . . . . . 1 . Hover . | . . . . . . . . . . . . . . . . . . . . Flight . | . . . . . . . . . . . . . . . . . . . . Utility 37 | 1 1 . . 1 5 5 1 . . 2 3 2 1 . 1 11 2 . 1 Device 20 | . . . . . 3 2 1 . . 2 2 1 1 . 1 6 1 . . Storage 7 | 1 1 . . . . 1 . . . . . . . . . 3 1 . . Processor 3 | . . . . . . 1 . . . . 1 . . . . . . . 1 Hackware 1 | . . . . . . 1 . . . . . . . . . . . . . Protection 6 | . . . . 1 2 . . . . . . 1 . . . 2 . . . Artifact . | . . . . . . . . . . . . . . . . . . . . Weapon 49 | 2 5 . . . 5 . 1 . . 9 2 4 3 . 2 16 . . . Energy Gun 3 | . 3 . . . . . . . . . . . . . . . . . . Energy Cannon . | . . . . . . . . . . . . . . . . . . . . Ballistic Gun 34 | 2 2 . . . 5 . 1 . . 5 1 3 2 . 2 11 . . . Ballistic Cannon 7 | . . . . . . . . . . 2 . 1 . . . 4 . . . Launcher 3 | . . . . . . . . . . 2 . . 1 . . . . . . Special Weapon . | . . . . . . . . . . . . . . . . . . . . Impact Weapon 1 | . . . . . . . . . . . 1 . . . . . . . . Slashing Weapon 1 | . . . . . . . . . . . . . . . . 1 . . . Piercing Weapon . | . . . . . . . . . . . . . . . . . . . . Special Melee Weapon . | . . . . . . . . . . . . . . . . . . . . Unidentified Prototypes 6 | . 1 . . . . 1 . . . 1 . . . . . 2 . 1 . Corrupted Parts 5 | . . 1 . . 3 . . . . . . . . . 1 . . . . System Corruption 20 | . . 6 . . 6 . . . . . . . . . 8 . . . . Parts Lost 108 | . 1 1 . . 13 1 3 . . 17 1 11 6 . . 46 . 6 2 Power 14 | . . . . . 2 . . . . 3 . 2 . . . 6 . 1 . Propulsion 34 | . . 1 . . 4 . 1 . . 5 . 3 3 . . 14 . 3 . Utility 22 | . . . . . 2 1 1 . . 2 1 3 1 . . 8 . 1 2 Weapon 38 | . 1 . . . 5 . 1 . . 7 . 3 2 . . 18 . 1 . Highest Loss Streak 12 | . 1 1 . . 5 1 3 . . 7 1 10 4 . . 12 . 5 2 To Critical Strikes 1 | . . . . . . . . . . . . . . . . 1 . . . Average Backups 18 | 2 8 15 15 14 15 20 24 25 25 18 21 18 16 16 23 18 7 6 5 Power 2 | . 1 1 2 2 1 1 4 4 4 2 1 1 2 3 3 2 1 1 1 Propulsion 3 | . . . . . 1 4 4 5 4 1 3 2 1 . 4 6 2 1 . Utility 5 | . 3 7 7 6 6 6 4 4 5 5 5 4 4 5 4 4 3 4 4 Weapon 7 | . 2 6 6 6 6 7 10 12 11 9 11 10 8 8 11 5 . . . Tool/Special . | . . . . . . . . . . . . . . . . . . . . Unused Backups 18 | . 3 1 . . 3 2 . . 1 1 . . . . 2 . . 2 3 Power 2 | . . . . . . 1 . . . . . . . . . . . . 1 Propulsion 1 | . . . . . . . . . . . . . . . . . . 1 . Utility 6 | . . 1 . . . 1 . . . 1 . . . . . . . 1 2 Weapon 9 | . 3 . . . 3 . . . 1 . . . . . 2 . . . . Tool/Special . | . . . . . . . . . . . . . . . . . . . . Average Slot Usage (%) 90 | . 84 85 85 96 88 98 98 100 100 97 99 87 90 86 97 87 46 25 5 Engine 7 | . 14 14 14 14 5 7 7 7 7 12 13 3 4 6 6 1 9 4 . Core 4 | . . . . . 3 7 7 7 7 1 . 3 6 6 6 4 . . . Treads 20 | . 28 28 28 28 21 23 22 23 23 22 20 19 17 13 19 9 16 9 . Leg 1 | . . . . . . . . . . . . . . . . 12 1 . . Device 13 | . . . . . 12 16 13 15 15 13 19 19 18 20 24 12 3 . . Storage 7 | . 14 14 14 14 9 7 7 7 7 7 6 6 6 6 6 5 5 2 . Processor 2 | . . . . . . 1 7 7 7 7 6 1 . . . . . . 1 Hackware 4 | . . . . . . 5 7 7 7 7 6 6 6 6 6 5 5 5 4 Protection 2 | . . . . 10 10 5 . . . . . 2 3 . . 1 . . . Energy Gun 4 | . 25 28 28 28 8 . . . . . . . . . . . . . . Ballistic Gun 16 | . 1 . . . 17 22 23 23 23 13 19 16 20 20 25 19 . . . Ballistic Cannon 2 | . . . . . . . . . . 8 4 4 3 . . 6 . . . Peak Build Rating 95 | 6 12 12 12 13 27 42 44 42 43 52 65 66 57 52 69 95 41 41 9 Average Rating 43 | 4 10 11 12 12 21 35 42 42 42 45 63 51 52 52 65 74 36 20 6 On Entrance 33 | . 6 12 12 12 13 27 42 42 42 43 52 64 47 52 52 69 27 41 6 Avg Prop Armor Cover (%) 16 | . . . . . . . . . . 13 . . 17 17 . . . . . Naked Turns 15 | . . . . . . . . . . . . . . . . . . . 15 Heaviest Build 152 | 12 51 51 51 54 67 116 116 112 112 120 128 124 117 108 140 152 109 109 . Greatest Support 100 | 40 40 40 40 40 63 60 60 60 60 67 64 64 60 16 60 91 100 100 3 Greatest Overweight (x) 35 | . 1 1 1 1 1 1 1 1 1 7 1 1 6 6 6 5 35 3 . Average Overweight (x) 1 | . . 1 1 1 . 1 1 1 1 1 1 1 2 6 1 1 1 . . Largest Inventory Capacity 25 | 8 20 20 20 20 20 25 25 25 25 25 25 25 25 25 25 25 25 25 5 Average Capacity 22 | 7 9 20 20 20 20 21 25 25 25 25 25 25 25 25 25 25 25 14 5 Most Carried 25 | 5 15 16 15 16 20 24 25 25 25 25 23 23 19 17 25 25 12 9 5 Average Carried 18 | 2 8 15 15 14 15 20 24 25 24 18 21 18 17 17 23 18 7 6 5 Final Capacity 25 | 8 20 20 20 20 20 25 25 25 25 25 25 25 25 25 25 25 25 5 5 Final Carried 25 | 3 15 15 15 16 19 24 25 25 25 22 23 17 17 17 25 12 8 5 5 Class Distribution -------------------- 26% | Scavenger-Gunner 24% | Scavenger-Tank 19% | Mutant 12% | Tank 12% | Gunner Dominant Class ---------------- Mutant | -10/Materials Mutant | -10/Mines Mutant | -10/Exiles Mutant | -9/Mines Tank | -8/Materials Gunner | -7/Factory Scavenger-Gunner | -7/Lower Caves Scavenger-Gunner | -7/Lower Caves Scavenger-Gunner | -7/Zion Gunner | -6/Proximity Caves Gunner | -6/Factory Scavenger-Tank | -6/Lower Caves Scavenger-Tank | -6/Lower Caves Scavenger-Tank | -6/Data Miner Scavenger-Tank | -5/Proximity Caves Scavenger-Gunner | -5/Factory Mutant | -4/Factory Mutant | -4/Upper Caves Mutant | -4/Upper Caves Resources | -11 -10 -10 -10 -9 -8 -7 -7 -7 -7 -6 -6 -6 -6 -6 -5 -5 -4 -4 -4 ----------- Run | Yrd Mat Min Exi Min Mat Fac Low Low Zio Pro Fac Low Low Dat Pro Fac Fac Upp Upp Matter Collected 7716 | 274 249 198 . 33 658 316 385 49 15 1182 265 374 581 . 459 2175 250 243 10 Remotely 589 | . . . . . . . 158 49 15 367 . . . . . . . . . Salvage Created 8108 | 98 766 424 . . 1502 367 48 46 . 898 236 241 536 . 201 2620 . 125 . Parts 413 | 3 55 25 . . 72 29 4 3 . 36 15 19 17 . 6 125 . 4 . Haulers Intercepted 8 | . 2 . . . 3 2 . . . . . . . . . 1 . . . Recyclers Shooed 3 | . 2 . . . . . . . . 1 . . . . . . . . . Parts Field Recycled . | . . . . . . . . . . . . . . . . . . . . Retrieved Matter . | . . . . . . . . . . . . . . . . . . . . Parts Self-Destructed 126 | . . . . . . . 4 4 . 35 . 18 3 . 55 . . 6 1 Prevented 59 | . . . . . . . . . . . . . . . 59 . . . . Parts Restored . | . . . . . . . . . . . . . . . . . . . . Kills | -11 -10 -10 -10 -9 -8 -7 -7 -7 -7 -6 -6 -6 -6 -6 -5 -5 -4 -4 -4 ------- Run | Yrd Mat Min Exi Min Mat Fac Low Low Zio Pro Fac Low Low Dat Pro Fac Fac Upp Upp Combat Hostiles Destroyed 167 | . 18 9 . . 22 5 2 1 . 22 3 6 15 . 4 58 . 2 . Melee 4 | . . . . . . . . . . . . . . . . 2 . 2 . Guns 128 | . 12 8 . . 21 5 2 1 . 12 . 5 11 . 4 47 . . . Cannons 18 | . . . . . . . . . . 5 3 1 2 . . 7 . . . AOE 16 | . 6 1 . . . . . . . 5 . . 2 . . 2 . . . Classes Destroyed 20 | 1 6 1 . . 3 2 1 . . 2 . . 1 . . 3 . . . Worker 4 | . . . . . 2 1 . . . . . . . . . 1 . . . Builder 4 | . 1 . . . . . . . . . . . . . . 3 . . . Hauler 8 | . 2 . . . 3 2 . . . . . . . . . 1 . . . Recycler 4 | 1 . . . . . 1 . . . . 1 . . . . 1 . . . Operator 2 | . 1 . . . . . . . . . . . . . . 1 . . . Watcher 8 | . 2 . . . 3 2 . . . 1 . . . . . . . . . Swarmer 27 | . 8 . . . . 1 . . . . . . 3 . . 15 . . . Saboteur 1 | . . . . . . . . . . . . . . . . 1 . . . Grunt 60 | . 10 8 . . 17 . . . . 8 . 1 4 . . 10 . 2 . Brawler 4 | . . . . . . . . . . 2 . 1 1 . . . . . . Duelist 7 | . . . . . 1 . . . . 2 . . 1 . 1 2 . . . Protector 2 | . . . . . . . . . . 1 . . . . . 1 . . . Sentry 22 | . . . . . 4 1 . . . 5 1 . . . 1 10 . . . Specialist 4 | . . . . . . . . . . . . . . . . 4 . . . Hunter 15 | . . . . . . 1 . 1 . 4 2 2 . . 2 3 . . . Programmer 15 | . . . . . . 2 1 . . . . 1 . . . 11 . . . Heavy 1 | . . . . . . . . . . . . . . . . 1 . . . Behemoth 3 | . . . . . . . 1 . . 1 . 1 . . . . . . . Assembled 1 | . . 1 . . . . . . . . . . . . . . . . . Thug 4 | . . . . . . . . . . . . . 4 . . . . . . Butcher 1 | . . . . . . . . . . . . . 1 . . . . . . Mutant 1 | . . . . . . . . . . . . . 1 . . . . . . Best Kill Streak 9 | 1 6 2 . . 5 2 1 1 . 8 2 2 4 . 2 9 . 2 . Combat Bots Only 8 | . 5 2 . . 5 2 1 1 . 8 1 2 4 . 2 7 . 2 . Max Kills in Single Turn 4 | 1 4 1 . . 2 2 1 1 . 2 1 2 2 . 1 3 . 1 . Gunslinging 2 | . 1 . . . . . . . . . . . . . . 2 . . . Exploded 3 | . 3 1 . . . . . . . 2 . . 2 . . 2 . . . Melee 1 | . . . . . . . . . . . . . . . . 1 . 1 . Uniques/NPCs Destroyed . | . . . . . . . . . . . . . . . . . . . . Combat | -11 -10 -10 -10 -9 -8 -7 -7 -7 -7 -6 -6 -6 -6 -6 -5 -5 -4 -4 -4 -------- Run | Yrd Mat Min Exi Min Mat Fac Low Low Zio Pro Fac Low Low Dat Pro Fac Fac Upp Upp Hostile Shots Fired 1489 | . 51 22 . . 155 35 42 10 . 280 59 81 44 . 58 510 . 71 71 Missed 417 | . 9 7 . . 39 14 12 2 . 99 13 22 8 . 21 136 . 11 24 Hits 1072 | . 42 15 . . 116 21 30 8 . 181 46 59 36 . 37 374 . 60 47 Melee 38 | . . 3 . . 7 . . . . 3 . . 4 . . 7 . 14 . Projectile 1034 | . 42 12 . . 109 21 30 8 . 178 46 59 32 . 37 367 . 46 47 AOE 1 | . . . . . . . . . . . . . . . . 1 . . . Critical Strikes 60 | . 1 . . . 8 . 1 . . 3 1 5 5 . 3 25 . 6 2 Part Disruptions 2 | . . . . . . . . . . . . . 1 . . 1 . . . Damage Taken 18439 | . 489 291 . . 1754 191 576 132 . 2607 388 1027 509 . 431 7769 . 1468 807 Core 3102 | . 131 115 . . 186 10 32 . . 351 36 83 128 . 36 836 . 383 775 Absorbed by Shields 1306 | . . . . . 148 60 . . . . 155 225 184 . 267 267 . . . Regen/Repaired (Parts) 350 | . 68 . . . 44 87 . . . . . . . . 42 109 . . . Core Remaining (%) 48 | 100 . . . 1 66 . . . . 43 . . . . 66 16 . . . Volleys Fired 406 | 2 30 17 . . 73 24 10 3 . 58 17 30 24 . 12 106 . . . Largest 5 | 2 2 2 . . 3 3 3 3 . 3 4 4 4 . 4 5 . . . Hottest 187 | 40 90 90 . . 113 79 79 79 . 102 118 114 114 . 102 187 . . . Shots Fired 1298 | 4 59 35 . . 213 64 30 11 1 163 54 106 85 . 46 427 . . . Gun 1091 | 4 59 35 . . 213 64 30 11 1 116 37 94 69 . 46 312 . . . Cannon 189 | . . . . . . . . . . 37 17 12 12 . . 111 . . . Launcher 18 | . . . . . . . . . . 10 . . 4 . . 4 . . . Special . | . . . . . . . . . . . . . . . . . . . . Kinetic 1134 | 4 . . . . 161 64 30 11 1 153 54 106 81 . 46 423 . . . Thermal . | . . . . . . . . . . . . . . . . . . . . Explosive 18 | . . . . . . . . . . 10 . . 4 . . 4 . . . Electromagnetic 146 | . 59 35 . . 52 . . . . . . . . . . . . . . Robot Hit Streak 22 | 3 11 10 . . 16 10 7 4 . 10 10 16 22 . 9 11 . . . Robot Miss Streak 11 | . 5 3 . . 3 7 4 3 . 6 11 3 3 . 8 9 . . . Penetration Max 2 | . . . . . . . . . . . . . . . . 2 . . . Secondary Targets 28 | . 2 1 . . 7 1 . . . 3 . . 2 . . 12 . . . Max Gunslinging Chain 2 | . 1 1 . . 1 1 . . . 1 . . 1 . . 2 . . . Shots Hit Robots 965 | 3 46 28 . . 162 51 28 8 . 121 29 84 61 . 36 288 . 20 . Core Hits 684 | 2 32 22 . . 74 51 19 9 . 124 12 31 52 . 29 221 . 6 . Critical Kills 5 | . . . . . . . . . . . . 1 . . . 4 . . . Critical Parts Destroyed 4 | . . . . . 1 . . . . . . . 1 . . 2 . . . Critical Strikes 19 | . . . . . 1 . . . . 3 . 1 1 . . 8 . 5 . Destroy 9 | . . . . . 1 . . . . . . 1 1 . . 6 . . . Blast 5 | . . . . . . . . . . 3 . . . . . 2 . . . Sever 5 | . . . . . . . . . . . . . . . . . . 5 . Melee Attacks 46 | . . . . . . . . . . . 6 . . . . 17 . 23 . Impact 9 | . . . . . . . . . . . 6 . . . . 3 . . . Slashing 37 | . . . . . . . . . . . . . . . . 14 . 23 . Piercing . | . . . . . . . . . . . . . . . . . . . . Sneak Attacks . | . . . . . . . . . . . . . . . . . . . . Combat Hostiles . | . . . . . . . . . . . . . . . . . . . . Follow-up Attacks . | . . . . . . . . . . . . . . . . . . . . Damage Inflicted 23255 | 24 1065 532 . . 2578 984 586 78 . 3301 488 1696 1615 . 741 8989 . 578 . Guns 16158 | 24 742 468 . . 2572 968 586 78 . 1836 304 1478 1193 . 741 5168 . . . Cannons 3178 | . . . . . . . . . . 690 184 218 151 . . 1935 . . . Explosions 3138 | . 315 61 . . . . . . . 764 . . 271 . . 1727 . . . Melee 714 | . . . . . . . . . . . . . . . . 136 . 578 . Ramming 67 | . 8 3 . . 6 16 . . . 11 . . . . . 23 . . . Kinetic 17397 | 24 . . . . 1843 968 586 78 . 2526 488 1696 1344 . 741 7103 . . . Thermal 664 | . 315 61 . . . . . . . 101 . . . . . 187 . . . Explosive 2474 | . . . . . . . . . . 663 . . 271 . . 1540 . . . Electromagnetic 1939 | . 742 468 . . 729 . . . . . . . . . . . . . . Impact . | . . . . . . . . . . . . . . . . . . . . Slashing 714 | . . . . . . . . . . . . . . . . 136 . 578 . Piercing . | . . . . . . . . . . . . . . . . . . . . Highest Corruption 9 | . 2 8 8 8 6 1 1 1 1 5 . . . . 8 9 . . . Average Corruption 3 | . 2 4 8 8 2 1 1 1 1 5 . . . . 8 6 . . . Corruption Purged . | . . . . . . . . . . . . . . . . . . . . Corruption Blocked . | . . . . . . . . . . . . . . . . . . . . Effects 203 | . 9 15 1 8 14 8 7 5 1 40 . . . . 39 56 . . . Message Errors 62 | . 3 4 1 5 1 5 3 1 . 19 . . . . 9 11 . . . Matter Fused 37 | . 3 4 . 1 1 3 2 . . 2 . . . . 9 12 . . . Heat Flow Errors 25 | . . 2 . . 3 . . 1 . 4 . . . . 6 9 . . . Energy Discharges 25 | . 2 . . 1 2 . 1 . . 5 . . . . 6 8 . . . Parts Rejected 1 | . . . . . 1 . . . . . . . . . . . . . . Parts Fused 5 | . . 1 . . . . . . . . . . . . 3 1 . . . Data Loss (minor) 15 | . . 1 . 1 1 . 1 . . 5 . . . . 1 5 . . . Data Loss (major) 11 | . 1 1 . . 1 . . . . 1 . . . . 3 4 . . . Misfires 11 | . . 1 . . 2 . . 2 1 2 . . . . . 3 . . . Alerts 4 | . . 1 . . 1 . . 1 . . . . . . . 1 . . . Weapon Failures 7 | . . . . . 1 . . . . 2 . . . . 2 2 . . . Overload Shots . | . . . . . . . . . . . . . . . . . . . . Overflow Damage 177 | . . . . . . . . . . 14 10 . . . . 153 . . . Projectiles 135 | . . . . . . . . . . 11 10 . . . . 114 . . . Explosions 42 | . . . . . . . . . . 3 . . . . . 39 . . . Melee . | . . . . . . . . . . . . . . . . . . . . Knockbacks 19 | . . . . . . . . . . 2 1 1 3 . . 12 . . . Impact . | . . . . . . . . . . . . . . . . . . . . Kinetic 19 | . . . . . . . . . . 2 1 1 3 . . 12 . . . Secondary . | . . . . . . . . . . . . . . . . . . . . Self-Inflicted Damage 521 | . 99 43 . . . . . . . 119 . . . . . 260 . . . Shots 13 | . 3 1 . . . . . . . 4 . . . . . 5 . . . Rammed 10 | 1 3 1 . . 1 1 . . . 1 . . . . . 2 . . . Targets Rammed 10 | 1 3 1 . . 1 1 . . . 1 . . . . . 2 . . . Kicked . | . . . . . . . . . . . . . . . . . . . . Crushed . | . . . . . . . . . . . . . . . . . . . . Highest Temperature 425 | . 210 269 . . 267 . 57 220 . 241 198 425 102 . 223 323 . 4 326 Average Temperature 78 | . 59 81 . . 65 . 33 110 . 80 101 92 24 . 63 86 . 4 175 Received Heat Transfer 4806 | . 153 84 . . 846 17 72 . . 558 . 1016 195 . 62 1145 . 217 441 Effects 4 | . . . . . . . . . . . . 3 . . . 1 . . . Shutdowns 1 | . . . . . . . . . . . . . . . . 1 . . . Interference 3 | . . . . . . . . . . . . 3 . . . . . . . Siege Activations . | . . . . . . . . . . . . . . . . . . . . Martial Activations . | . . . . . . . . . . . . . . . . . . . . Shielding Activations . | . . . . . . . . . . . . . . . . . . . . Robots Disrupted 1 | . . . . . 1 . . . . . . . . . . . . . . Combat Hostiles 1 | . . . . . 1 . . . . . . . . . . . . . . Robots Corrupted 2 | . 1 . . . 1 . . . . . . . . . . . . . . Combat Hostiles 1 | . . . . . 1 . . . . . . . . . . . . . . Parts Fried 9 | . 4 2 . . 3 . . . . . . . . . . . . . . Impact Corruptions . | . . . . . . . . . . . . . . . . . . . . Robots Melted . | . . . . . . . . . . . . . . . . . . . . Combat Hostiles . | . . . . . . . . . . . . . . . . . . . . Parts Melted 1 | . . . . . . . . . . 1 . . . . . . . . . Heat Transferred 530 | . 250 50 . . . . . . . 80 . . . . . 150 . . . Parts Sabotaged 3 | . . . . . . . . . . . . . . . . 3 . . . Parts Stolen . | . . . . . . . . . . . . . . . . . . . . Parts Stripped . | . . . . . . . . . . . . . . . . . . . . Power Chain Reactions 5 | . 4 1 . . . . . . . . . . . . . . . . . Alert | -11 -10 -10 -10 -9 -8 -7 -7 -7 -7 -6 -6 -6 -6 -6 -5 -5 -4 -4 -4 ------- Run | Yrd Mat Min Exi Min Mat Fac Low Low Zio Pro Fac Low Low Dat Pro Fac Fac Upp Upp Maximum Alert Level 4 | . . . . . . . . . . . . . . . . 4 2 . . Low Security (%) 72 | 100 100 100 . 100 100 100 . . . . 100 . . . . 20 . . . Level 1 7 | . . . . . . . . . . . . . . . . 16 54 . . Level 2 15 | . . . . . . . . . . . . . . . . 46 45 . . Level 3 4 | . . . . . . . . . . . . . . . . 14 . . . Level 4 . | . . . . . . . . . . . . . . . . 1 . . . Level 5 . | . . . . . . . . . . . . . . . . . . . . High Security . | . . . . . . . . . . . . . . . . . . . . Max Security . | . . . . . . . . . . . . . . . . . . . . Peak Influence 1108 | 5 178 57 . . 177 79 . . . . 64 . . . . 1108 488 . . Initial 488 | . . 24 . . . 79 . . . . 64 . . . . 300 488 . . Average 188 | . 85 14 . . 41 14 . . . . 11 . . . . 508 398 . . Influence Increases 5663 | 5 505 187 . . 633 281 60 30 . 718 106 160 210 . 356 2161 16 175 60 Destroy 0b10 Robot/C 3420 | . 360 160 . . 440 120 40 20 . 560 60 120 180 . 180 1140 . 40 . Destroy 0b10 Robot/NC 165 | 5 30 . . . 40 35 . . . 10 5 . . . . 40 . . . Destroy Leader 662 | . 68 20 . . 112 60 20 10 . 40 20 40 30 . 10 232 . . . Allied During Kill 143 | . . . . . . 4 . . . 108 . . . . 31 . . . . Successful Hack 95 | . 18 . . . 7 38 . . . . . . . . . 16 16 . . Disable Machine 150 | . . . . . . . . . . . 15 . . . . 135 . . . Destroy Structure 248 | . 14 7 . . 4 9 . . . . 6 . . . . 208 . . . Advance Influence 300 | . . . . . . . . . . . . . . . . 300 . . . Lose Combat Pursuer 480 | . 15 . . . 30 15 . . . . . . . . 135 90 . 135 60 Influence Decreases 5583 | 5 442 241 9 . 459 411 104 30 . 615 209 132 204 34 356 1163 700 327 142 Entered New Map 898 | . . 39 9 . . 95 17 . . . 39 . 6 34 . . 510 117 32 Time Decay 3618 | 5 432 192 . . 392 306 87 30 . 357 160 122 158 . 244 703 190 150 90 Lost Part 815 | . 10 10 . . 67 10 . . . 118 10 10 40 . . 460 . 60 20 Lost Ally 252 | . . . . . . . . . . 140 . . . . 112 . . . . Squads Dispatched 38 | . 3 . . . 2 7 . . . 3 2 . . . . 19 2 . . Investigation 7 | . 2 . . . . . . . . 3 1 . . . . . 1 . . Extermination 9 | . . . . . . 3 . . . . 1 . . . . 5 . . . Reinforcement 13 | . 1 . . . 2 3 . . . . . . . . . 6 1 . . Assault 4 | . . . . . . . . . . . . . . . . 4 . . . Garrison 5 | . . . . . . 1 . . . . . . . . . 4 . . . Intercept . | . . . . . . . . . . . . . . . . . . . . Searches Triggered . | . . . . . . . . . . . . . . . . . . . . Data Miner Redirects 2 | . . . . . . . . . . . . . . . . 2 . . . Construction Impeded 2 | . . . . . . . . . . . . . . . . 2 . . . Haulers Reinforced 2 | . . . . . . 2 . . . . . . . . . . . . . Active Scanning Responses . | . . . . . . . . . . . . . . . . . . . . Cargo Convoy Interrupts 1 | . . . . . . . . . . . . . . . . 1 . . . Stealth | -11 -10 -10 -10 -9 -8 -7 -7 -7 -7 -6 -6 -6 -6 -6 -5 -5 -4 -4 -4 --------- Run | Yrd Mat Min Exi Min Mat Fac Low Low Zio Pro Fac Low Low Dat Pro Fac Fac Upp Upp Distress Signals 13 | . 2 . . . 7 1 . . . . . . . . . 3 . . . Communications Jammed . | . . . . . . . . . . . . . . . . . . . . Distress Signals . | . . . . . . . . . . . . . . . . . . . . Times Spotted 296 | . 25 10 . . 45 15 2 1 . 30 4 7 15 . 37 79 1 11 14 Peak Tracking Total 12 | . 6 4 . . 6 2 1 1 . 6 2 3 3 . 10 12 . 5 12 Tactical Retreats 24 | . 1 2 . . 1 1 . . . . . . . . 5 6 . 5 3 Traps | -11 -10 -10 -10 -9 -8 -7 -7 -7 -7 -6 -6 -6 -6 -6 -5 -5 -4 -4 -4 ------- Run | Yrd Mat Min Exi Min Mat Fac Low Low Zio Pro Fac Low Low Dat Pro Fac Fac Upp Upp Traps Triggered 7 | . 3 . . . 2 1 . . . 1 . . . . . . . . . Indirectly . | . . . . . . . . . . . . . . . . . . . . Trap Hack Attempts . | . . . . . . . . . . . . . . . . . . . . Triggered . | . . . . . . . . . . . . . . . . . . . . Disarmed . | . . . . . . . . . . . . . . . . . . . . Reprogrammed . | . . . . . . . . . . . . . . . . . . . . Reused . | . . . . . . . . . . . . . . . . . . . . Traps Extracted . | . . . . . . . . . . . . . . . . . . . . Installed . | . . . . . . . . . . . . . . . . . . . . Triggered . | . . . . . . . . . . . . . . . . . . . . Machines | -11 -10 -10 -10 -9 -8 -7 -7 -7 -7 -6 -6 -6 -6 -6 -5 -5 -4 -4 -4 ---------- Run | Yrd Mat Min Exi Min Mat Fac Low Low Zio Pro Fac Low Low Dat Pro Fac Fac Upp Upp Machines Disabled 13 | . . . . . . . . . . 3 1 . . . . 9 . . . Max in Single Turn 3 | . . . . . . . . . . 1 1 . . . . 3 . . . Garrison Access 2 | . . . . . 1 . . . . . . . . . . 1 . . . Machines Repaired . | . . . . . . . . . . . . . . . . . . . . Machines Dismantled . | . . . . . . . . . . . . . . . . . . . . Machines Sabotaged . | . . . . . . . . . . . . . . . . . . . . Overloaded Fab Kills . | . . . . . . . . . . . . . . . . . . . . Hacking | -11 -10 -10 -10 -9 -8 -7 -7 -7 -7 -6 -6 -6 -6 -6 -5 -5 -4 -4 -4 --------- Run | Yrd Mat Min Exi Min Mat Fac Low Low Zio Pro Fac Low Low Dat Pro Fac Fac Upp Upp Machines Accessed 44 | . 7 . . . 11 7 1 . 1 3 2 . . 4 1 5 2 . . Terminals 15 | . 4 . . . 7 1 . . . 1 2 . . . . . . . . Fabricators 6 | . . . . . . 2 . . . 1 . . . . . 1 2 . . Repair Stations 4 | . 1 . . . 1 1 . . . . . . . . . 1 . . . Recycling Units 7 | . 2 . . . 1 1 . . . 1 . . . . 1 1 . . . Scanalyzers 2 | . . . . . 1 1 . . . . . . . . . . . . . Garrison Access 4 | . . . . . 1 1 . . . . . . . . . 2 . . . Total Hacks 116 | . 14 . . . 27 15 1 . 3 8 6 . . 27 1 11 3 . . Successful 84 | . 12 . . . 16 9 1 . 3 3 3 . . 27 1 8 1 . . Failed 32 | . 2 . . . 11 6 . . . 5 3 . . . . 3 2 . . Catastrophic 5 | . . . . . 2 2 . . . . . . . . . . 1 . . Database Lockouts . | . . . . . . . . . . . . . . . . . . . . Manual 42 | . 7 . . . 18 7 . . . . 3 . . . . 4 3 . . Terminals 38 | . 10 . . . 19 2 . . . 1 6 . . . . . . . . Fabricators 13 | . . . . . . 4 . . . 3 . . . . . 3 3 . . Repair Stations 8 | . 2 . . . 2 2 . . . . . . . . . 2 . . . Recycling Units 16 | . 2 . . . 1 4 . . . 4 . . . . 1 4 . . . Scanalyzers 5 | . . . . . 3 2 . . . . . . . . . . . . . Garrison Access 5 | . . . . . 2 1 . . . . . . . . . 2 . . . Terminal Hacks 40 | . 4 . . . 3 . 1 . 3 1 1 . . 27 . . . . . Record 11 | . . . . . . . . . . . . . . 11 . . . . . Part Schematic 12 | . 1 . . . . . . . 3 . . . . 8 . . . . . Robot Schematic 5 | . . . . . . . . . . . . . . 5 . . . . . Prototype ID Bank 7 | . 2 . . . 1 . . . . . 1 . . 3 . . . . . Open Door 2 | . . . . . . . 1 . . 1 . . . . . . . . . Level Access Points 1 | . . . . . 1 . . . . . . . . . . . . . . Branch Access Points 1 | . . . . . 1 . . . . . . . . . . . . . . Terminal Index 1 | . 1 . . . . . . . . . . . . . . . . . . Fabricator Hacks 1 | . . . . . . . . . . 1 . . . . . . . . . Build 1 | . . . . . . . . . . 1 . . . . . . . . . Repair Station Hacks 8 | . 2 . . . 2 2 . . . . . . . . . 2 . . . Scan Component 4 | . 1 . . . 1 1 . . . . . . . . . 1 . . . Repair 4 | . 1 . . . 1 1 . . . . . . . . . 1 . . . Recycling Unit Hacks 12 | . 2 . . . 1 4 . . . 1 . . . . 1 3 . . . Report Inventory 7 | . 2 . . . 1 1 . . . 1 . . . . 1 1 . . . Retrieve Matter 4 | . . . . . . 2 . . . . . . . . . 2 . . . Retrieve Components 1 | . . . . . . 1 . . . . . . . . . . . . . Scanalyzer 3 | . . . . . 3 . . . . . . . . . . . . . . Retrieve Study 3 | . . . . . 3 . . . . . . . . . . . . . . Garrison Access Hacks 2 | . . . . . 1 . . . . . . . . . . 1 . . . Seal Access 2 | . . . . . 1 . . . . . . . . . . 1 . . . Unauthorized Hacks 18 | . 4 . . . 6 3 . . . . 2 . . . . 2 1 . . Terminals 13 | . 4 . . . 6 1 . . . . 2 . . . . . . . . Botnet 13 | . 4 . . . 6 1 . . . . 2 . . . . . . . . Fabricators 4 | . . . . . . 2 . . . . . . . . . 1 1 . . Liberate 1 | . . . . . . 1 . . . . . . . . . . . . . Fabnet 3 | . . . . . . 1 . . . . . . . . . 1 1 . . Repair Stations . | . . . . . . . . . . . . . . . . . . . . Recycling Units 1 | . . . . . . . . . . . . . . . . 1 . . . Mask 1 | . . . . . . . . . . . . . . . . 1 . . . Scanalyzers . | . . . . . . . . . . . . . . . . . . . . Garrison Access . | . . . . . . . . . . . . . . . . . . . . Data Cores Recovered 1 | . . . . . . . . . . . . . . . . 1 . . . Used . | . . . . . . . . . . . . . . . . . . . . Hacking Detections 25 | . 4 . . . 6 6 . . . 3 2 . . . . 2 2 . . Full Trace Events 5 | . . . . . 1 . . . . 2 1 . . . . . 1 . . Feedback Events . | . . . . . . . . . . . . . . . . . . . . Feedback Blocked . | . . . . . . . . . . . . . . . . . . . . Robot Schematics Acquired 5 | . . . . . . . . . . . . . . 5 . . . . . Robots Built . | . . . . . . . . . . . . . . . . . . . . Authchips . | . . . . . . . . . . . . . . . . . . . . Time . | . . . . . . . . . . . . . . . . . . . . Total Robot Build Rating . | . . . . . . . . . . . . . . . . . . . . Part Schematics Acquired 12 | . 1 . . . . . . . 3 . . . . 8 . . . . . Parts Built 2 | . . . . . . . . . . 2 . . . . . . . . . Authchips . | . . . . . . . . . . . . . . . . . . . . Time 53 | . . . . . . . . . . 53 . . . . . . . . . Total Part Build Rating 12 | . . . . . . . . . . 12 . . . . . . . . . Part Studies Acquired 3 | . . . . . 3 . . . . . . . . . . . . . . Parts Repaired 4 | . 1 . . . 1 1 . . . . . . . . . 1 . . . Time 183 | . 51 . . . 38 32 . . . . . . . . . 62 . . . Parts Recycled . | . . . . . . . . . . . . . . . . . . . . Recycled Matter . | . . . . . . . . . . . . . . . . . . . . Retrieved Matter . | . . . . . . . . . . . . . . . . . . . . Retrieved Components 3 | . . . . . . 3 . . . . . . . . . . . . . Parts Scanalyzed . | . . . . . . . . . . . . . . . . . . . . Part Schematics Acquired . | . . . . . . . . . . . . . . . . . . . . Parts Damaged . | . . . . . . . . . . . . . . . . . . . . Bothacking | -11 -10 -10 -10 -9 -8 -7 -7 -7 -7 -6 -6 -6 -6 -6 -5 -5 -4 -4 -4 ------------ Run | Yrd Mat Min Exi Min Mat Fac Low Low Zio Pro Fac Low Low Dat Pro Fac Fac Upp Upp Used RIF Installer . | . . . . . . . . . . . . . . . . . . . . Robots Hacked 2 | . . . . . . . . . . 1 . . . . 1 . . . . Non-combat . | . . . . . . . . . . . . . . . . . . . . Combat 2 | . . . . . . . . . . 1 . . . . 1 . . . . Robot Hacks Applied . | . . . . . . . . . . . . . . . . . . . . Relay Couplers Released 2 | . . . . . 2 . . . . . . . . . . . . . . Machine Destruction 2 | . . . . . 2 . . . . . . . . . . . . . . Fabnet Peak Effective % 3 | . . . . . . . . . . 3 3 3 3 3 1 1 3 3 3 Autooverrided 2 | . . . . . . . . . . 1 . . . . 1 . . . . Robots Rewired 17 | . . . . . . . . . . 11 . . . . 6 . . . . Allies Hacked . | . . . . . . . . . . . . . . . . . . . . Hacks Repelled . | . . . . . . . . . . . . . . . . . . . . Allies | -11 -10 -10 -10 -9 -8 -7 -7 -7 -7 -6 -6 -6 -6 -6 -5 -5 -4 -4 -4 -------- Run | Yrd Mat Min Exi Min Mat Fac Low Low Zio Pro Fac Low Low Dat Pro Fac Fac Upp Upp Total Allies 23 | . . . . . . 2 . . . 12 . . . . 8 . . . 1 Largest Group 11 | . . . . . . 2 . . . 11 3 . . . 6 . . . 1 Highest-Rated Group 222 | . . . . . . 74 . . . 222 60 . . . 126 . . . 146 Highest-Rated Ally 146 | . . . . . . 37 . . . 41 20 . . . 30 . . . 146 Total Orders 1 | . . . . . . . . . . . . . . . . 1 . . . RETURN 1 | . . . . . . . . . . . . . . . . 1 . . . Ally Attacks 144 | . . . . . . 29 . . . 78 4 . . . 33 . . . . Total Damage 2441 | . . . . . . 272 . . . 1495 85 . . . 589 . . . . Kills 14 | . . . . . . 2 . . . 7 . . . . 5 . . . . Allies Corrupted . | . . . . . . . . . . . . . . . . . . . . Allies Melted 1 | . . . . . . . . . . . . . . . 1 . . . . Intel | -11 -10 -10 -10 -9 -8 -7 -7 -7 -7 -6 -6 -6 -6 -6 -5 -5 -4 -4 -4 ------- Run | Yrd Mat Min Exi Min Mat Fac Low Low Zio Pro Fac Low Low Dat Pro Fac Fac Upp Upp Active Infowar (turns) 1060 | . . . . . . . . . . . 751 309 . . . . . . . Decoding 1060 | . . . . . . . . . . . 751 309 . . . . . . . Robot Analysis Total . | . . . . . . . . . . . . . . . . . . . . Derelict Logs Recovered 14 | . . 1 . . . . . 3 2 2 . 1 1 . 2 . . 1 1 Drone Launches 1 | . . . . . . . . . . . . . . . . 1 . . . Drone Recoveries 1 | . . . . . . . . . . . . . . . . 1 . . . Decoded 0b10 Intel 27 | . . . . . . . . . . . 27 . . . . . . . . Items 27 | . . . . . . . . . . . 27 . . . . . . . . Exploration | -11 -10 -10 -10 -9 -8 -7 -7 -7 -7 -6 -6 -6 -6 -6 -5 -5 -4 -4 -4 ------------- Run | Yrd Mat Min Exi Min Mat Fac Low Low Zio Pro Fac Low Low Dat Pro Fac Fac Upp Upp Turns Passed 19994 | 103 1520 709 106 270 1793 1792 1030 640 1638 1927 751 1125 636 145 1865 3058 392 310 184 Spaces Moved 8577 | 61 759 262 45 112 656 777 483 312 814 731 304 491 260 77 692 901 140 351 349 Core 683 | 14 . . . . . . . . . . . . . . . . 2 318 349 Treads 7230 | 47 759 262 45 112 656 777 483 312 814 726 304 491 169 . 686 429 125 33 . Legs 485 | . . . . . . . . . . . . . . . . 472 13 . . Wheels 179 | . . . . . . . . . . 5 . . 91 77 6 . . . . Hover . | . . . . . . . . . . . . . . . . . . . . Flight . | . . . . . . . . . . . . . . . . . . . . Fastest Speed 50 | 50 160 240 240 240 160 200 200 200 200 200 216 200 190 190 190 187 190 50 50 Average Speed 198 | 134 167 240 240 240 200 200 200 200 200 213 216 203 199 190 251 242 263 68 50 Slowest Speed 1800 | 160 240 240 240 240 240 200 200 200 200 305 216 216 285 190 269 570 1800 400 50 Overloaded Moves . | . . . . . . . . . . . . . . . . . . . . Propulsion Burnouts . | . . . . . . . . . . . . . . . . . . . . Robots Hopped . | . . . . . . . . . . . . . . . . . . . . Potential Cave-ins . | . . . . . . . . . . . . . . . . . . . . Cave-ins Triggered . | . . . . . . . . . . . . . . . . . . . . Exploration Rate (%) 48 | 4 94 70 10 30 69 30 66 54 79 64 10 62 51 68 66 19 4 56 59 Regions Visited 19 Branch Regions 13 Pre-discovered Areas 8 | . . . . 1 . . . . 3 1 . . . 1 1 . . . 1 Known Exits Taken 10 | . . . . . 1 1 1 1 1 1 1 1 . . 1 1 . . . Unknown Exits Taken 9 | 1 1 1 1 1 . . . . . . . . 1 1 . . 1 1 . Scrap Searched 20 | . . . . 2 . . 1 2 1 1 . 1 2 . 3 . . 3 4 Spaces Dug 7 | . . . . . . . . . . . 4 . . . . 3 . . . Terrain Destroyed 154 | . 12 7 . . . . . . . 2 7 2 24 . . 100 . . . Melee 7 | . . . . . . . . . . . 4 . . . . 3 . . . Projectile 57 | . . . . . . . . . . 1 3 2 1 . . 50 . . . AOE 90 | . 12 7 . . . . . . . 1 . . 23 . . 47 . . . Terrain Rammed . | . . . . . . . . . . . . . . . . . . . . Walls Destroyed . | . . . . . . . . . . . . . . . . . . . . Machines Disabled . | . . . . . . . . . . . . . . . . . . . . Actions | -11 -10 -10 -10 -9 -8 -7 -7 -7 -7 -6 -6 -6 -6 -6 -5 -5 -4 -4 -4 --------- Run | Yrd Mat Min Exi Min Mat Fac Low Low Zio Pro Fac Low Low Dat Pro Fac Fac Upp Upp Total 10597 | 77 950 309 44 114 975 965 525 322 826 982 357 556 324 76 792 1494 166 385 358 Wait 1034 | 1 126 24 . . 181 132 15 8 4 70 20 23 21 . 25 361 8 7 8 Move 8559 | 61 758 261 44 111 655 776 482 311 813 730 303 490 259 76 691 900 139 350 349 Hop . | . . . . . . . . . . . . . . . . . . . . Pick Up 168 | 6 18 3 . 2 29 13 8 . 4 16 5 2 7 . 18 31 5 1 . Fast Attach 24 | 2 2 . . . 5 4 . . . . . 2 2 . . 5 1 . 1 Attach 130 | 4 3 1 . 1 23 3 4 . . 17 4 8 6 . 2 45 7 2 . Detach 6 | . . . . . 1 . . . . . . . . . . 5 . . . Swap 44 | 1 4 . . . 2 5 3 . 1 4 1 1 4 . 6 12 . . . Drop 60 | . 6 2 . . 5 7 3 . 4 2 1 . 1 . 11 10 6 2 . Fire 406 | 2 30 17 . . 73 24 10 3 . 58 17 30 24 . 12 106 . . . Melee 46 | . . . . . . . . . . . 6 . . . . 17 . 23 . Ram . | . . . . . . . . . . . . . . . . . . . . Kick . | . . . . . . . . . . . . . . . . . . . . Crush 9 | . 3 1 . . 1 1 . . . 1 . . . . . 2 . . . Escape Stasis . | . . . . . . . . . . . . . . . . . . . . Rewire 110 | . . . . . . . . . . 84 . . . . 26 . . . . Trap . | . . . . . . . . . . . . . . . . . . . . Miscellaneous 1 | . . . . . . . . . . . . . . . 1 . . . . Route ------- -11/Scrapyard -10/Materials (discovered 6 exits: [*Mat x3] / [*Min x2] / [*Sub]) -10/Mines -10/Exiles -9/Mines -8/Materials (discovered 3 exits: *Fac x3) -7/Factory (discovered 2 exits: *Fac / *Low) -7/Lower Caves -7/Lower Caves (discovered 2 exits: *Fac / *Zio) -7/Zion -6/Proximity Caves -6/Factory (discovered 3 exits: Fac / *Low x2) -6/Lower Caves -6/Lower Caves (discovered 2 exits: *Fac / *Dat) -6/Data Miner -5/Proximity Caves -5/Factory (discovered 2 exits: *Fac x2) -4/Factory -4/Upper Caves -4/Upper Caves (discovered 1 exit: [*Res]) History --------- Turn | Location | Event 5 | -11/Scrapyard | Discovered new exit (range 14) 104 | -11/Scrapyard | Entered Materials 299 | -10/Materials | Discovered new exit (range 15) 302 | -10/Materials | Build established: Mutant 490 | -10/Materials | Discovered new exit (range 5) 730 | -10/Materials | Discovered new exit (range 15) 948 | -10/Materials | Discovered new exit (range 5) 1068 | -10/Materials | Discovered new exit (range 14) 1124 | -10/Materials | Core integrity fell below 50% 1223 | -10/Materials | Repaired Imp. EM Shotgun 1419 | -10/Materials | Discovered new exit (range 16) 1624 | -10/Materials | Entered Mines 1891 | -10/Mines | Excavation squad dispatched 1891 | -10/Mines | A large section of the Mines collapsed 2004 | -10/Mines | Learned Materials stockpile data 2021 | -10/Mines | Core integrity fell below 20% 2324 | -10/Mines | Deemed a non-threat by the Exiles lab entrance 2324 | -10/Mines | Discovered new exit (range 5) 2333 | -10/Mines | Entered Exiles 2393 | -10/Exiles | Met 8R-AWN 2410 | -10/Exiles | Discovered new exit (range 14) 2439 | -10/Exiles | Entered Mines 2443 | -9/Mines | Learned location of Storage (-9) 2699 | -9/Mines | Discovered new exit (range 5) 2709 | -9/Mines | Entered Materials 2709 | -8/Materials | Evolved 4 slots: Propulsion x1, Utility x2, Weapon x1 3182 | -8/Materials | Build established: Tank 3698 | -8/Materials | Repaired Lgt. Nuclear Core 3817 | -8/Materials | Identified exit to Factory 4149 | -8/Materials | Lost 5 parts (1p1n1u2w) 4502 | -8/Materials | Entered Factory 4502 | -7/Factory | Evolved 2 slots: Power x1, Utility x1 4648 | -7/Factory | Garrison activated, responded to threat 5588 | -7/Factory | Repaired Hvy. Assault Rifle+ 5772 | -7/Factory | Discovered new exit (range 10) 5899 | -7/Factory | Build established: Gunner 5952 | -7/Factory | Identified exit to Factory 6263 | -7/Factory | Discovered new exit (range 13) 6292 | -7/Factory | Identified exit to Lower Caves 6294 | -7/Factory | Entered Lower Caves 6386 | -7/Lower Caves | Found DCF Scrap (13 items) 6465 | -7/Lower Caves | Spotted B-75 Beast 6506 | -7/Lower Caves | Destroyed B-75 Beast 6535 | -7/Lower Caves | Lost 3 parts (1n1u1w) 6965 | -7/Lower Caves | Encountered a Warlord checkpoint 6971 | -7/Lower Caves | Build established: Scavenger-Gunner 7314 | -7/Lower Caves | Discovered new exit (range 5) 7322 | -7/Lower Caves | Identified exit to Lower Caves 7324 | -7/Lower Caves | Entered another Lower Caves area 7332 | -7/Lower Caves | Learned Factory interactive machine intel 7408 | -7/Lower Caves | Learned Factory terminal intel 7450 | -7/Lower Caves | Discovered exit to Factory (range 8) 7652 | -7/Lower Caves | Learned location of 2 exits from Factory 7942 | -7/Lower Caves | Discovered new exit (range 12) 7962 | -7/Lower Caves | Identified exit to Zion 7964 | -7/Lower Caves | Entered Zion 8054 | -7/Zion | System corruption cleaned by Quarantine Array 8138 | -7/Zion | Learned location of 1 exit from Lower Caves 8204 | -7/Zion | Given the Hacking Drone Bay 8211 | -7/Zion | Found Prototype Device 8377 | -7/Zion | Learned location of Warlord (-5) 9162 | -7/Zion | Learned Factory emergency access door positions 9516 | -7/Zion | Discovered new exit (range 14) 9600 | -7/Zion | Identified exit to Proximity Caves 9602 | -7/Zion | Entered Proximity Caves 9734 | -6/Proximity Caves | Learned 12 Factory zone layouts 10058 | -6/Proximity Caves | Spotted B-75 Beast 10059 | -6/Proximity Caves | Entered a huge 0b10 base via the front door 10081 | -6/Proximity Caves | Destroyed B-75 Beast 10109 | -6/Proximity Caves | Lost 6 parts (1p2n3w) 10332 | -6/Proximity Caves | Lost 7 parts (2p2n1u2w) 10563 | -6/Proximity Caves | Core integrity fell below 50% 10596 | -6/Proximity Caves | Destroyed 8 combat bots 10617 | -6/Proximity Caves | Build established: Gunner 10839 | -6/Proximity Caves | Discovered exit to Factory (range 10) 11104 | -6/Proximity Caves | Build established: Commander-Gunner 11156 | -6/Proximity Caves | Fabricated Adv. Shield Generator (x2) 11182 | -6/Proximity Caves | Lost 3 allies 11529 | -6/Proximity Caves | Entered Factory 11529 | -6/Factory | Accompanied by 3 allies 11529 | -6/Factory | Evolved 2 slots: Utility x1, Weapon x1 11530 | -6/Factory | Identified exit to Lower Caves 11530 | -6/Factory | Identified exit to Factory 11533 | -6/Factory | Loaded intel: 51 interactive machine locations 11534 | -6/Factory | Loaded intel: 24 terminal locations 11650 | -6/Factory | Build established: Gunner 11846 | -6/Factory | Lost 3 allies 12280 | -6/Factory | Entered Lower Caves 12281 | -6/Lower Caves | Encountered a Warlord checkpoint 12281 | -6/Lower Caves | Identified exit to Lower Caves 12439 | -6/Lower Caves | Build established: Scavenger-Tank 12538 | -6/Lower Caves | Spotted B-75 Beast 12610 | -6/Lower Caves | Destroyed B-75 Beast 12631 | -6/Lower Caves | Lost 10 parts (2p3n2u3w) 12655 | -6/Lower Caves | Learned Factory emergency access door positions 13055 | -6/Lower Caves | Found DRS Beacon 13405 | -6/Lower Caves | Entered another Lower Caves area 13425 | -6/Lower Caves | Learned 8 Factory zone layouts 13590 | -6/Lower Caves | Attacked by a faux Warlord 13620 | -6/Lower Caves | Discovered exit to Factory (range 9) 13866 | -6/Lower Caves | Lost 4 parts (2n1u1w) 14020 | -6/Lower Caves | Discovered new exit (range 12) 14041 | -6/Lower Caves | Entered Data Miner 14041 | -6/Data Miner | Discovered new exit (range 6) 14079 | -6/Data Miner | Met Data Miner 14110 | -6/Data Miner | Learned location of Section 7 (-3) 14110 | -6/Data Miner | Acquired the access code to Warlord's prototype stash 14142 | -6/Data Miner | Received God Mode back door access code from Data Miner 14186 | -6/Data Miner | Entered Proximity Caves 14188 | -5/Proximity Caves | Greeted by an Infiltrator in a former 0b10 base 14345 | -5/Proximity Caves | Spotter reported a threat 14459 | -5/Proximity Caves | Spotter reported a threat 14461 | -5/Proximity Caves | Former 0b10 base attacked by MAIN.C 14680 | -5/Proximity Caves | Activated DRS Beacon 14778 | -5/Proximity Caves | Lost 17 allies 14786 | -5/Proximity Caves | 0b10 base defense nominally successful 15330 | -5/Proximity Caves | Learned Factory stockpile data 15632 | -5/Proximity Caves | Attracted the attention of an 0b10 checkpoint 15785 | -5/Proximity Caves | Discovered exit to Factory (range 14) 16051 | -5/Proximity Caves | Entered Factory 16051 | -5/Factory | Evolved 2 slots: Propulsion x1, Weapon x1 16052 | -5/Factory | Identified exit to Factory 16164 | -5/Factory | Repaired Railgun 16493 | -5/Factory | Garrison activated, responded to threat 17066 | -5/Factory | Destroyed 7 combat bots 17117 | -5/Factory | Cargo convoy interrupted 17164 | -5/Factory | Destroyed 7 combat bots 17167 | -5/Factory | Lost 12 parts (1p4n3u4w) 17234 | -5/Factory | Garrison activated, responded to threat 17251 | -5/Factory | First assault squad dispatched 17271 | -5/Factory | Incoming assault squad redirected 17292 | -5/Factory | Incoming assault squad redirected 17373 | -5/Factory | Lost 6 parts (2p2n2w) 17415 | -5/Factory | Build established: Scavenger-Gunner 17661 | -5/Factory | Lost 3 parts (3w) 18354 | -5/Factory | Core integrity fell below 50% 18377 | -5/Factory | Lost 3 parts (2n1w) 18489 | -5/Factory | Identified Hacking Drone Bay 19012 | -5/Factory | Discovered exit to Factory (range 4) 19060 | -5/Factory | Lost 9 parts (1p2n1u5w) 19101 | -5/Factory | Core integrity fell below 20% 19109 | -5/Factory | Entered another Factory area 19109 | -4/Factory | Evolved 2 slots: Utility x2 19124 | -4/Factory | Lost 5 parts (1p3n1u) 19328 | -4/Factory | Build established: Mutant 19442 | -4/Factory | Discovered new exit (range 16) 19501 | -4/Factory | Entered Upper Caves 19656 | -4/Upper Caves | Attracted the attention of an 0b10 checkpoint 19657 | -4/Upper Caves | Learned 4 Research zone layouts 19681 | -4/Upper Caves | Lost 5 parts (1p3n1w) 19801 | -4/Upper Caves | Discovered new exit (range 14) 19811 | -4/Upper Caves | Entered another Upper Caves area 19828 | -4/Upper Caves | Discovered new exit (range 11) 19851 | -4/Upper Caves | Encountered a Warlord checkpoint 19857 | -4/Upper Caves | Spotted B-86 Titan 19931 | -4/Upper Caves | Learned location of Testing (-2) 19964 | -4/Upper Caves | Core integrity fell below 50% 19976 | -4/Upper Caves | Core integrity fell below 20% 19995 | -4/Upper Caves | Destroyed by S-27 Virus with Autogun Last Messages --------------- Found Mak. Transmission Jammer. Found 36 Matter. Searching scrap... Found Imp. Propulsion Shielding. Found KE Penetrator. Found Jamming Amplifier. Found 49 Matter. Acquired derelict log, extracted data. World map updated: -2/Testing. Searching scrap... Found Unknown Device. Found Adv. Targeting Computer. Found 69 Matter. Acquired Adv. Targeting Computer. Acquired 10 matter. S-27 Virus destroyed. Hacking Suite destroyed. Autogun+ fries itself beyond repair. A strange signal echoes through the caves. Adv. Targeting Computer destroyed. Map ----- +----------------------------------------------------+ | | | | | | | | | ?????????????????????????????????????????????????? | | ?????????????????????????????????????????????????? | | ?????????????????????????????????????????????????? | | ?????????????????????????????????????????????????? | | ?????????????????????????????????????????????????? | | ?????????????????????????????????????????????????? | | ?????????????????????????????????????????????????? | | ?????????????????????????????????????????????????? | | ?????????????????????????????????????????????????? | | ?????????????????????????????????????????????????? | | ?????????????????????????????????????????????????? | | ?????????????????????????????????????????????????? | | ?????????????????????????????????????????????????? | | ?????????????????????????????????????????????????? | | ?????????????????????????????????????????????????? | | ?????????????????????????????????????????????????? | | ?????????????????????????????????????????????????? | | ?????????????????????????????????????????????????? | | ????????????????????????####?????? ???? #???????? | | ???????????????????????## ##????? ##?? ##?????? | | ???????????????????????# #????? ? ?????? | | ???????????????????????##@ #????? #? ?????? | | ????????????????????????#s #????? ## ???? | | ???????????????????????## #?????# ???? | | ???????????????????????# s #???### ? ????? | | ??????????????????????## s ##??## ? ??? | | ?????????????????????## s##???# ?? """"""" | | ????????????????????## s#????# #?? """""" | | ????????????????????# ##??## #?? " " " | | ???????????????????## s #??# ##?# | | ???????????????????# #??# ### """" | | ???????????????????## ##??# ## #? """ | | ????????????????????# ###?# ### " | | ????????????????????## ### # | | ?????????????????????#### | | ????????????????????????# ## ## | | ????????????????????????# ######## ## | | ???????????????????????# #??????## # | | ??????????????????????# #????##?#### ## ## | | ??????????????????????# #????# #???##### ## | | ??????????????????????## #????# ####???# ## | | ???????????????????????## ???## ##??# | | ????????????????????????# #### ##?# # | | ????????????????????????# #?#### | | ????????????????????????# ####### | | ????????????????????????# ### % | +----------------------------------------------------+ Best States ------------- Heat Dissipation 59 Coolant Potential 160 Energy Generation 35 Energy Capacity 540 Matter Stores 300 Matter Capacity 300 Sight Range 16 Terrain Scan Density 10 Armor Coverage 375 Evasion (%) 50 Targeting Accuracy 8 Recoil Reduction 10 Kinecelleration 30 Offensive Hacking 10 Item Schematics ----------------- Huge Storage Unit | -10/Materials | Hacked Beamcaster | -7/Zion | Free Barrage Gun | -7/Zion | Free Enh. Flamer | -7/Zion | Free Enh. Armored Leg | -6/Data Miner | Free Combat Drone Bay | -6/Data Miner | Free Lgt. Regenerative Plating | -6/Data Miner | Free Prc. Energy Filter | -6/Data Miner | Free Centrium Wheel | -6/Data Miner | Free Matter Neutralizer | -6/Data Miner | Free Enh. Coil Gun | -6/Data Miner | Free Adv. Transmission Jammer | -6/Data Miner | Free Robot Schematics ------------------ R-10 Processor | -6/Data Miner | Free S-27 Virus | -6/Data Miner | Free M-22 Extractor | -6/Data Miner | Free H-66 Slayer | -6/Data Miner | Free C-35 Carver | -6/Data Miner | Free Fabricated ------------ Adv. Shield Generator | x2 | -6/Proximity Caves | Preloaded Repaired ---------- Imp. EM Shotgun | 2% | -10/Materials Lgt. Nuclear Core | 12% | -8/Materials Hvy. Assault Rifle | 24% | -7/Factory Railgun | 37% | -5/Factory Studied --------- Hvy. Assault Rifle | -8/Materials | Hacked Lgt. Treads | -8/Materials | Hacked Autogun | -8/Materials | Hacked Alien Tech Used ----------------- None Achievements -------------- My Bad Plot Armor Challenges ------------ None Game ------ Seed BattleSwordAutocannon Manual? 0 Play Time 01:58:28 Cumulative 219.6 hours Start 2026.09.05 @ 18:43:11 End 2026.09.05 @ 23:27:25 Sessions 3 Manual Loads 0 Difficulty Rogue Special Mode None Game No. 262 Rogue 262 Adventurer 0 Explorer 0 Win Type - Total 2 Types 2/0/0/0/0/0/0/0/0/0 Lore% 28 Gallery% 54 Achievement% 34 Wizard Run 0 Options --------- Layout 1 ASCII 0 Keyboard 0 Movement Numpad Keybinds 0 Fullscreen 2 Font 24/Smallcaps Map View 50x35 Zoom Use 0% Tactical HUD 0 Map Filters NONE Filters NONE Steam 1 RUN: 0b91b75a-ba43-4933-8c6b-71c042243c1f